bitfinex/quotes_SOLUSD_20220306
["timestamp","ask_amount","ask_price","bid_price","bid_amount"]
[1646590489264,1.56034935,87.569,87.53,17.1723]
[1646590489564,5.711,87.568,87.53,17.1723]
[1646590489764,5.711,87.569,87.53,17.1723]
[1646590490166,5.711,87.57,87.53,17.1723]
[1646590490573,7.27134935,87.57,87.53,17.1723]
[1646590491767,1.56034935,87.57,87.53,17.1723]
[1646590492871,1.56034935,87.571,87.53,17.1723]
[1646590493272,1.56034935,87.57,87.53,17.1723]
[1646590493870,1.56034935,87.57,87.531,47.19773538]
[1646590494070,1.56034935,87.571,87.54,17.1399]
[1646590494269,0.00373216,87.573,87.54,17.1399]
[1646590494672,0.00373216,87.573,87.541,26.59022662]
[1646590495071,0.00373216,87.573,87.55,17.1341]
[1646590496674,0.00373216,87.573,87.551,26.59022662]
[1646590496872,0.00373216,87.573,87.56,17.1326]
[1646590499395,0.00373216,87.573,87.55,17.1678]
[1646590499796,0.00373216,87.573,87.55,0.03]
[1646590502197,1.56408151,87.573,87.55,0.03]
[1646590502398,1.56034935,87.572,87.55,0.03]
[1646590502598,1.56408151,87.573,87.56,0.03]
[1646590504103,1.56034935,87.571,87.56,0.03]
[1646590504505,1.56034935,87.572,87.56,0.03]
[1646590506304,0.00373216,87.573,87.56,0.03]
[1646590506305,1.56034935,87.569,87.56,0.03]
[1646590506504,3.03219997,87.568,87.56,0.03]
[1646590509006,3.03219997,87.567,87.56,0.03]
[1646590509305,1.56034935,87.57,87.56,0.03]
[1646590509705,0.00373216,87.573,87.54,0.03]
[1646590510106,0.00373216,87.573,87.541,26.59022662]
[1646590510807,0.00373216,87.573,87.56,17.1362]
[1646590512208,0.00373216,87.573,87.55,17.1378]
[1646590515012,0.00373216,87.573,87.541,0.03]
[1646590516815,1.56408151,87.573,87.541,0.03]
[1646590517315,1.56034935,87.572,87.541,0.03]
[1646590517513,1.56034935,87.565,87.55,0.03]
[1646590517716,1.56034935,87.564,87.55,0.03]
[1646590518013,1.56034935,87.565,87.55,0.03]
[1646590518214,0.00373216,87.573,87.55,0.03]
[1646590518215,1.56034935,87.564,87.55,0.03]
[1646590519015,1.56034935,87.563,87.55,0.03]
[1646590521019,1.56034935,87.564,87.55,0.03]
[1646590521617,1.56034935,87.563,87.55,0.03]
[1646590523118,1.56034935,87.564,87.55,0.03]
[1646590523318,1.56034935,87.563,87.55,0.03]
[1646590523518,1.56034935,87.564,87.55,0.03]
[1646590524120,1.56034935,87.565,87.55,0.03]
[1646590524320,1.56034935,87.564,87.55,0.03]
[1646590525140,1.56034935,87.564,87.53,17.1425]
[1646590526644,5.71,87.572,87.53,17.1425]
[1646590526645,1.56034935,87.563,87.53,17.1425]
[1646590527043,1.56034935,87.565,87.53,17.1425]
[1646590527444,1.56034935,87.566,87.53,17.1425]
[1646590527645,1.56034935,87.566,87.53,17.1725]
[1646590529246,1.56034935,87.563,87.53,17.1725]
[1646590529644,0.00373216,87.573,87.53,17.1725]
[1646590529645,1.56034935,87.57,87.53,17.1725]
[1646590529848,1.56408151,87.573,87.531,5.711]
[1646590530045,0.00373216,87.573,87.54,17.1361]
[1646590530648,0.00373216,87.573,87.541,5.71]
[1646590531047,0.00373216,87.573,87.531,5.71]
[1646590531447,0.00373216,87.573,87.55,17.1367]
[1646590537951,0.00373216,87.573,87.55,17.1667]
[1646590539050,0.00373216,87.573,87.55,0.03]
[1646590543153,0.00373216,87.573,87.55,17.1683]
[1646590544953,1.56408151,87.573,87.55,17.1683]
[1646590545155,0.00373216,87.573,87.55,17.1683]
[1646590545653,0.00373216,87.573,87.55,17.1383]
[1646590549557,0.00373216,87.573,87.54,17.1698]
[1646590550957,1.06408151,87.574,87.541,70.0]
[1646590551158,5.71,87.595,87.541,70.0]
[1646590551360,6.24760003,87.594,87.541,70.0]
[1646590551558,5.708,87.593,87.541,70.0]
[1646590552161,5.708,87.597,87.541,70.0]
[1646590552664,6.2475898,87.596,87.541,70.0]
[1646590552867,3.08283464,87.614,87.55,17.1382]
[1646590553064,3.08283464,87.618,87.56,13.78]
[1646590553465,3.08283464,87.618,87.561,34.20360886]
[1646590553665,3.08283464,87.618,87.561,49.05086879]
[1646590553964,3.08283464,87.618,87.563,63.36973979]
[1646590554164,6.24622396,87.63,87.564,5.708]
[1646590554365,5.707,87.629,87.564,49.05086879]
[1646590554566,6.24622396,87.628,87.565,43.34286879]
[1646590554765,5.707,87.627,87.566,5.707]
[1646590554966,5.707,87.632,87.57,30.9074]
[1646590555169,5.707,87.632,87.571,5.707]
[1646590555570,5.707,87.632,87.571,34.20260886]
[1646590555870,5.707,87.632,87.572,28.49560886]
[1646590556068,5.707,87.632,87.573,5.707]
[1646590556268,5.707,87.632,87.58,17.1292]
[1646590556470,24.6073,87.633,87.581,5.707]
[1646590556669,24.6073,87.633,87.581,34.20260886]
[1646590557069,5.707,87.65,87.582,28.49560886]
[1646590557270,5.707,87.65,87.59,17.1271]
[1646590557470,5.706,87.653,87.591,53.46522061]
[1646590557670,6.24385814,87.652,87.591,81.96082947]
[1646590557873,24.8766,87.655,87.592,28.49560886]
[1646590558069,5.706,87.654,87.592,28.49560886]
[1646590559092,5.706,87.654,87.6,17.1247]
[1646590560593,114.7,87.649,87.6,17.1247]
[1646590560793,5.706,87.648,87.592,28.49560886]
[1646590561195,5.706,87.648,87.59,17.13]
[1646590561594,120.94459334,87.647,87.59,17.13]
[1646590561893,5.706,87.646,87.59,17.13]
[1646590562095,17.1306,87.64,87.59,17.13]
[1646590562394,120.406,87.639,87.566,28.49560886]
[1646590562794,6.24566913,87.638,87.566,28.49560886]
[1646590562996,123.48983464,87.637,87.566,28.49560886]
[1646590563193,3.08283464,87.632,87.553,28.49392136]
[1646590563394,114.7,87.63,87.554,46.30398739]
[1646590563693,6.24566913,87.629,87.581,0.03]
[1646590563894,17.1364,87.62,87.581,0.03]
[1646590564093,114.7,87.619,87.581,0.03]
[1646590564293,5.707,87.618,87.581,0.03]
[1646590564493,114.7,87.617,87.581,0.03]
[1646590564893,114.7,87.609,87.581,0.03]
[1646590565194,5.708,87.608,87.581,0.03]
[1646590566093,114.7,87.599,87.581,0.03]
[1646590566294,5.708,87.598,87.581,0.03]
[1646590570706,5.708,87.598,87.53,16.4708]
[1646590570907,17.1406,87.59,87.53,16.4708]
[1646590571305,24.3206,87.589,87.53,16.4708]
[1646590571705,5.71,87.588,87.53,16.4708]
[1646590572505,120.41,87.588,87.53,16.4708]
[1646590572907,114.7,87.579,87.511,25.93579002]
[1646590573114,5.711,87.578,87.511,25.93579002]
[1646590573309,5.711,87.578,87.492,23.6628]
[1646590573511,114.7,87.576,87.492,23.6628]
[1646590573708,114.7,87.572,87.48,23.3904]
[1646590573907,114.7,87.568,87.47,13.78]
[1646590574110,5.712,87.571,87.48,17.1502]
[1646590574111,17.1526,87.54,87.48,17.1502]
[1646590574311,120.413,87.539,87.47,25.93579002]
[1646590574610,143.7094,87.539,87.47,25.93579002]
[1646590575009,137.9964,87.539,87.47,25.93579002]
[1646590575410,137.9964,87.539,87.457,25.93579002]
[1646590575614,5.714,87.538,87.457,25.93579002]
[1646590576213,114.7,87.529,87.46,17.1553]
[1646590576414,5.714,87.528,87.46,17.1553]
[1646590576613,5.714,87.528,87.461,25.93579002]
[1646590576913,137.249,87.527,87.461,25.93579002]
[1646590577117,5.714,87.526,87.461,25.93579002]
[1646590577916,114.7,87.519,87.461,25.93579002]
[1646590578117,5.714,87.518,87.461,25.93579002]
[1646590579219,5.714,87.525,87.461,25.93579002]
[1646590579518,114.7,87.509,87.461,25.93579002]
[1646590579719,114.7,87.509,87.45,46.2535]
[1646590579917,114.7,87.509,87.45,22.8715]
[1646590580117,5.715,87.508,87.45,17.1575]
[1646590580721,5.715,87.508,87.45,43.09329002]
[1646590581120,5.715,87.509,87.45,43.09329002]
[1646590581419,120.415,87.519,87.45,43.09329002]
[1646590582220,114.7,87.519,87.451,5.715]
[1646590582419,17.1572,87.51,87.451,5.715]
[1646590583019,114.7,87.509,87.451,5.715]
[1646590583220,5.715,87.508,87.45,43.09329002]
[1646590585421,114.7,87.499,87.45,25.93579002]
[1646590585622,5.715,87.498,87.45,25.93579002]
[1646590586224,5.715,87.498,87.44,17.1596]
[1646590586422,114.7,87.497,87.437,25.93059002]
[1646590586626,114.7,87.489,87.437,25.93059002]
[1646590587727,114.7,87.489,87.43,13.78]
[1646590587728,5.716,87.488,87.424,71.95289002]
[1646590588123,5.716,87.488,87.44,17.1599]
[1646590588622,5.716,87.488,87.44,16.6599]
[1646590589226,5.716,87.496,87.44,16.6599]
[1646590589427,24.713,87.498,87.44,16.6599]
[1646590589829,24.713,87.498,87.441,25.93059002]
[1646590590028,5.716,87.537,87.45,17.1505]
[1646590590231,17.1529,87.53,87.451,64.14168827]
[1646590590429,5.714,87.529,87.451,90.07227829]
[1646590590628,120.414,87.529,87.451,64.14168827]
[1646590590829,120.414,87.529,87.452,25.93059002]
[1646590591038,5.714,87.529,87.452,25.93059002]
[1646590591230,5.714,87.536,87.47,17.1534]
[1646590591629,120.414,87.536,87.47,17.1534]
[1646590593251,114.7,87.529,87.47,17.1534]
[1646590593451,5.714,87.528,87.47,17.1534]
[1646590594452,137.577,87.527,87.47,17.1534]
[1646590594652,5.714,87.526,87.47,17.1534]
[1646590597952,5.714,87.526,87.47,30.9334]
[1646590599554,120.414,87.557,87.49,17.1468]
[1646590600359,5.714,87.557,87.49,17.1468]
[1646590600556,5.712,87.558,87.49,17.1468]
[1646590601058,114.7,87.556,87.49,17.1468]
[1646590601254,114.7,87.549,87.49,17.1468]
[1646590601457,5.713,87.548,87.49,17.1468]
[1646590601654,137.5254,87.547,87.49,17.1468]
[1646590601858,5.713,87.546,87.49,17.1468]
[1646590602857,137.5254,87.547,87.49,17.1468]
[1646590606059,5.713,87.546,87.49,17.1468]
[1646590609564,120.413,87.546,87.49,17.1468]
[1646590609764,114.7,87.539,87.49,17.1468]
[1646590609964,5.713,87.538,87.49,17.1468]
[1646590610965,5.713,87.545,87.49,17.1468]
[1646590611164,114.7,87.539,87.49,17.1468]
[1646590611364,5.713,87.538,87.49,17.1468]
[1646590612068,5.713,87.538,87.48,17.1526]
[1646590612267,114.7,87.529,87.48,17.1526]
[1646590612467,5.713,87.528,87.48,17.1526]
[1646590612868,5.713,87.528,87.463,5.713]
[1646590613168,114.7,87.519,87.455,5.714]
[1646590613368,5.715,87.518,87.434,5.715]
[1646590613568,5.715,87.518,87.434,29.4299]
[1646590614367,114.7,87.516,87.434,29.4299]
[1646590614569,5.715,87.515,87.434,29.4299]
[1646590615171,5.715,87.515,87.46,17.1571]
[1646590615172,114.7,87.509,87.46,17.1571]
[1646590615372,5.715,87.508,87.46,17.1571]
[1646590617675,5.715,87.508,87.441,5.715]
[1646590617676,114.7,87.499,87.45,17.1588]
[1646590618773,5.715,87.498,87.45,17.1588]
[1646590625178,114.7,87.489,87.44,17.1604]
[1646590625381,120.416,87.489,87.441,5.716]
[1646590625878,120.416,87.489,87.435,5.716]
[1646590626079,137.2786,87.488,87.435,5.716]
[1646590627080,137.2786,87.488,87.45,17.1588]
[1646590627480,114.7,87.479,87.435,5.716]
[1646590627680,114.7,87.479,87.434,23.7149]
[1646590627883,114.7,87.479,87.421,5.716]
[1646590628081,57.2086,87.5,87.421,5.716]
[1646590628082,143.7202,87.478,87.421,5.716]
[1646590628482,143.7202,87.478,87.43,17.1626]
[1646590632698,29.0202,87.478,87.43,17.1626]
[1646590632899,5.716,87.478,87.431,25.93059002]
[1646590633095,5.716,87.509,87.44,17.1544]
[1646590633295,24.9233,87.508,87.441,62.80664029]
[1646590633497,5.715,87.507,87.441,62.80664029]
[1646590633695,5.715,87.507,87.442,25.93059002]
[1646590634110,5.715,87.507,87.46,17.1571]
[1646590634912,24.9233,87.508,87.46,17.1571]
[1646590636916,183.48,87.507,87.46,17.1571]
[1646590637117,183.48,87.507,79.0,0.04]
[1646590637118,183.48,87.507,87.403,23.7861]
[1646590637319,5.716,87.506,87.404,22.8587]
[1646590637520,189.16465567,87.505,87.409,25.93059002]
[1646590637718,68.78,87.499,87.409,25.93059002]
[1646590637921,183.48,87.497,87.409,25.93059002]
[1646590638123,183.48,87.495,87.409,25.93059002]
[1646590638320,183.48,87.493,87.409,25.93059002]
[1646590638520,183.48,87.489,87.41,17.1664]
[1646590638722,188.04465408,87.487,87.396,25.93059002]
[1646590638920,183.48,87.479,87.38,13.78]
[1646590639120,183.48,87.479,87.37,57.2343]
[1646590639121,183.48,87.477,87.381,22.8587]
[1646590639420,5.718,87.476,87.381,80.81138811]
[1646590640020,17.1702,87.46,87.39,17.1709]
[1646590640221,114.7,87.459,87.39,17.1709]
[1646590640620,114.7,87.457,87.39,17.1709]
[1646590641223,17.1677,87.45,87.39,17.1709]
[1646590641923,114.7,87.449,87.39,17.1709]
[1646590642225,23.5467,87.448,87.39,17.1709]
[1646590642824,114.7,87.447,87.39,17.1709]
[1646590644423,23.5467,87.448,87.39,17.1709]
[1646590644625,5.719,87.447,87.39,17.1709]
[1646590647228,5.719,87.447,87.39,30.9509]
[1646590647428,17.1626,87.48,87.391,37.42364103]
[1646590647630,5.718,87.479,87.411,47.88419962]
[1646590647831,5.716,87.485,87.42,13.78]
[1646590648532,120.416,87.507,87.43,17.1576]
[1646590649530,5.716,87.485,87.43,17.1576]
[1646590654534,114.7,87.479,87.413,24.3741]
[1646590654934,5.716,87.478,87.413,24.3741]
[1646590655336,114.7,87.477,87.413,24.3741]
[1646590655536,5.716,87.476,87.413,24.3741]
[1646590655735,17.1679,87.46,87.4,17.1674]
[1646590655935,5.716,87.476,87.4,17.1674]
[1646590655936,137.3993,87.459,87.4,17.1674]
[1646590656136,5.718,87.458,87.4,17.1674]
[1646590656837,114.7,87.449,87.4,17.1674]
[1646590657437,17.1682,87.45,87.4,17.1674]
[1646590658639,114.7,87.449,87.4,17.1674]
[1646590658839,17.1682,87.45,87.4,17.1674]
[1646590659641,114.7,87.449,87.4,17.1674]
[1646590661569,5.719,87.448,87.4,17.1674]
[1646590664973,114.7,87.439,87.384,14.39787752]
[1646590665175,114.7,87.439,87.342,24.3945]
[1646590665375,117.43903211,87.439,87.342,24.3945]
[1646590665775,5.72,87.438,87.343,5.72]
[1646590665975,114.7,87.436,87.343,5.72]
[1646590666174,114.7,87.429,87.35,17.177]
[1646590666375,5.72,87.428,87.351,5.72]
[1646590666575,5.72,87.428,87.352,24.3945]
[1646590666978,183.48,87.423,87.352,24.3945]
[1646590667175,183.48,87.423,87.336,23.7536]
[1646590667375,109.7,87.421,87.336,23.7536]
[1646590667576,5.722,87.42,87.336,23.7536]
[1646590668277,109.7,87.419,87.34,17.1775]
[1646590668478,5.722,87.418,87.34,17.1775]
[1646590669478,109.7,87.409,87.341,48.686474]
[1646590669678,5.722,87.408,87.35,17.1759]
[1646590669876,109.7,87.409,87.351,5.722]
[1646590670577,17.1756,87.41,87.351,5.722]
[1646590670777,120.422,87.421,87.36,17.1737]
[1646590671284,5.722,87.421,87.36,17.1737]
[1646590671481,22.641,87.445,87.36,17.1737]
[1646590671482,5.721,87.43,87.361,5.721]
[1646590671677,5.721,87.437,87.361,5.721]
[1646590671876,5.721,87.437,87.361,23.22927236]
[1646590672079,5.721,87.437,87.362,28.94927236]
[1646590672277,23.5216,87.444,87.362,42.68123333]
[1646590672577,23.7824,87.473,87.371,56.86069563]
[1646590672578,5.72,87.443,87.371,56.86069563]
[1646590672778,5.72,87.466,87.38,70.9893]
[1646590673076,5.72,87.467,87.381,5.72]
[1646590673276,5.72,87.468,87.381,5.72]
[1646590673676,5.72,87.468,87.381,28.94927236]
[1646590673877,5.72,87.468,87.39,17.1628]
[1646590674080,5.719,87.469,87.391,5.719]
[1646590674378,1.55405373,87.47,87.391,5.719]
[1646590674583,5.719,87.469,87.391,5.719]
[1646590674785,5.719,87.47,87.391,5.719]
[1646590674982,5.719,87.472,87.391,5.719]
[1646590675182,5.719,87.472,87.401,45.79464196]
[1646590675385,5.719,87.472,87.402,5.719]
[1646590676182,23.7824,87.473,87.41,17.1616]
[1646590676384,23.7824,87.473,87.411,5.719]
[1646590676782,23.7824,87.473,87.401,45.79464196]
[1646590676783,23.7824,87.473,87.402,5.719]
[1646590677185,23.7824,87.473,87.41,17.1627]
[1646590677384,23.7824,87.473,87.411,5.719]
[1646590677984,114.7,87.469,87.411,5.719]
[1646590678386,114.7,87.469,87.41,17.1627]
[1646590679185,5.718,87.468,87.411,5.718]
[1646590679385,5.718,87.469,87.411,5.718]
[1646590679787,17.1659,87.46,87.411,5.718]
[1646590679985,120.418,87.459,87.411,5.718]
[1646590680185,120.418,87.459,87.391,5.718]
[1646590680387,120.418,87.459,87.383,5.719]
[1646590680686,120.418,87.459,87.382,47.5095]
[1646590680886,114.7,87.459,87.4,17.1662]
[1646590681496,5.718,87.458,87.4,17.1662]
[1646590683091,5.718,87.458,87.384,5.718]
[1646590683092,114.7,87.449,87.384,5.718]
[1646590683292,5.719,87.448,87.383,53.8355177]
[1646590683891,5.719,87.448,87.368,5.719]
[1646590684093,114.7,87.447,87.368,5.719]
[1646590684294,5.72,87.446,87.368,5.719]
[1646590684692,116.25405373,87.445,87.38,17.1703]
[1646590684895,5.72,87.444,87.381,48.20151154]
[1646590685493,114.7,87.443,87.381,48.20151154]
[1646590685692,5.72,87.442,87.381,48.20151154]
[1646590685894,5.72,87.442,87.371,5.72]
[1646590686094,114.7,87.439,87.38,17.1703]
[1646590686294,5.72,87.438,87.38,17.1703]
[1646590686894,5.72,87.438,87.381,47.75614051]
[1646590688101,5.72,87.439,87.39,17.1686]
[1646590688500,24.63745373,87.448,87.39,17.1686]
[1646590688701,23.0834,87.448,87.39,17.1686]
[1646590692306,5.719,87.447,87.39,17.1686]
[1646590698521,23.0834,87.448,87.39,17.1686]
[1646590701525,1.55405373,87.443,87.39,17.1686]
[1646590702526,1.55405373,87.442,87.39,17.1686]
[1646590702927,5.719,87.447,87.39,17.1686]
[1646590702928,1.55405373,87.443,87.39,17.1686]
[1646590704129,1.55405373,87.444,87.39,17.1686]
[1646590704329,1.55405373,87.443,87.39,17.1686]
[1646590707137,5.719,87.442,87.39,17.1686]
[1646590707540,1.55405373,87.44,87.39,17.1686]
[1646590707940,1.55405373,87.439,87.39,17.1686]
[1646590708140,1.55405373,87.44,87.39,17.1686]
[1646590708741,1.55405373,87.441,87.39,17.1686]
[1646590708940,1.55405373,87.44,87.39,17.1686]
[1646590709141,1.55405373,87.441,87.39,17.1686]
[1646590710341,1.55405373,87.44,87.39,17.1686]
[1646590712444,1.55405373,87.441,87.39,17.1686]
[1646590712666,1.55405373,87.44,87.39,17.1686]
[1646590714045,1.55405373,87.441,87.39,17.1686]
[1646590714644,1.55405373,87.44,87.39,17.1686]
[1646590714846,1.55405373,87.439,87.39,17.1686]
[1646590715146,1.55405373,87.44,87.39,17.1686]
[1646590716651,17.1646,87.47,87.39,17.1686]
[1646590716652,1.55405373,87.452,87.391,23.22927236]
[1646590716849,1.55405373,87.452,87.4,17.1572]
[1646590717047,1.55405373,87.455,87.4,30.9372]
[1646590717347,1.55405373,87.467,87.401,28.92895323]
[1646590717549,1.55405373,87.467,87.401,37.21943912]
[1646590717749,1.55405373,87.468,87.402,37.21943912]
[1646590717949,1.55405373,87.468,87.411,50.2773759]
[1646590718151,1.55405373,87.469,87.411,50.2773759]
[1646590718549,1.55405373,87.469,87.412,23.22927236]
[1646590718953,1.55405373,87.469,87.42,17.1587]
[1646590719150,1.55405373,87.47,87.421,5.716]
[1646590719349,1.55405373,87.47,87.42,13.78]
[1646590719555,1.55405373,87.471,87.421,5.716]
[1646590719750,1.55405373,87.473,87.413,5.716]
[1646590719950,1.55405373,87.473,87.43,17.1591]
[1646590720375,1.55405373,87.476,87.43,17.1591]
[1646590720577,1.55405373,87.481,87.431,5.716]
[1646590720775,1.55405373,87.482,87.431,5.716]
[1646590721175,1.55405373,87.488,87.431,5.716]
[1646590721376,1.55405373,87.488,87.44,17.1569]
[1646590721578,1.55405373,87.49,87.442,55.62097373]
[1646590721776,1.55405373,87.495,87.443,5.716]
[1646590722180,1.55405373,87.496,87.443,5.716]
[1646590722377,3.08283464,87.52,87.443,120.416]
[1646590722378,1.55405373,87.495,87.443,120.416]
[1646590722579,1.55405373,87.507,87.45,131.8526]
[1646590722781,1.55405373,87.507,87.46,13.78]
[1646590722979,29.70539226,87.526,87.46,13.78]
[1646590722980,1.55405373,87.519,87.461,5.715]
[1646590723282,1.55405373,87.52,87.461,28.94427236]
[1646590723480,1.55405373,87.52,87.47,17.1443]
[1646590723779,1.55405373,87.535,87.48,13.78]
[1646590723982,1.55405373,87.535,87.481,5.713]
[1646590724379,1.55405373,87.536,87.481,5.713]
[1646590725179,5.713,87.551,87.481,5.713]
[1646590725180,1.55405373,87.538,87.49,17.1462]
[1646590725380,1.55405373,87.539,87.49,17.1462]
[1646590726786,1.55405373,87.545,87.49,17.1462]
[1646590727281,5.713,87.544,87.49,17.1462]
[1646590727485,5.713,87.544,87.293,155.97771933]
[1646590727486,1.55405373,87.541,87.429,114.7]
[1646590727681,1.55405373,87.529,87.45,13.78]
[1646590727881,1.55405373,87.527,87.45,13.78]
[1646590728081,114.7,87.525,87.452,5.715]
[1646590728280,22.8453,87.524,87.452,5.715]
[1646590728481,120.415,87.523,87.453,55.53817251]
[1646590728680,120.415,87.523,87.454,5.715]
[1646590728881,5.715,87.523,87.454,5.715]
[1646590729386,17.1559,87.52,87.46,17.1556]
[1646590729583,5.714,87.519,87.461,5.714]
[1646590730184,120.414,87.519,87.461,5.714]
[1646590730484,5.714,87.519,87.461,5.714]
[1646590730684,5.714,87.519,87.47,17.1541]
[1646590731986,5.714,87.523,87.47,17.1541]
[1646590732386,7.26805373,87.523,87.47,17.1541]
[1646590732988,1.55405373,87.522,87.47,17.1541]
[1646590733185,5.714,87.521,87.47,17.1541]
[1646590734086,7.26805373,87.521,87.47,17.1541]
[1646590734590,24.39935373,87.524,87.471,5.714]
[1646590734789,22.8453,87.524,87.48,17.1477]
[1646590734987,22.8453,87.524,87.481,62.5673062]
[1646590735887,22.8453,87.524,87.49,17.1495]
[1646590736088,1.55405373,87.533,87.49,17.1495]
[1646590736887,23.9532,87.548,87.49,17.1495]
[1646590736888,1.55405373,87.538,87.49,17.1495]
[1646590737488,1.55405373,87.536,87.49,17.1495]
[1646590737689,1.55405373,87.536,87.491,5.713]
[1646590738288,1.55405373,87.536,87.49,17.1495]
[1646590738488,1.55405373,87.533,87.481,5.713]
[1646590738787,1.55405373,87.531,87.481,5.713]
[1646590738987,1.55405373,87.53,87.48,17.1512]
[1646590739187,1.55405373,87.529,87.48,17.1512]
[1646590739391,7.26705373,87.528,87.48,17.1512]
[1646590739589,1.55405373,87.528,87.48,17.1512]
[1646590740189,1.55405373,87.527,87.48,17.1512]
[1646590740390,1.55405373,87.524,87.48,17.1512]
[1646590741492,1.55405373,87.522,87.48,17.1512]
[1646590743293,17.1545,87.52,87.46,13.78]
[1646590743492,1.55405373,87.515,87.461,5.714]
[1646590743692,1.55405373,87.516,87.457,5.715]
[1646590743891,1.55405373,87.515,87.457,5.715]
[1646590744093,1.55405373,87.508,87.457,5.715]
[1646590744292,1.55405373,87.507,87.47,17.1531]
[1646590745492,1.55405373,87.511,87.47,17.1531]
[1646590745695,1.55405373,87.515,87.47,17.1531]
[1646590745994,1.55405373,87.519,87.47,30.9331]
[1646590746193,1.55405373,87.518,87.47,30.9331]
[1646590746593,1.55405373,87.519,87.47,30.9331]
[1646590747396,1.55405373,87.514,87.47,30.9331]
[1646590747996,1.55405373,87.519,87.47,30.9331]
[1646590748196,1.55405373,87.524,87.47,30.9331]
[1646590748395,1.55405373,87.525,87.47,30.9331]
[1646590748600,1.55405373,87.524,87.47,30.9331]
[1646590749398,1.55405373,87.521,87.47,30.9331]
[1646590749797,1.55405373,87.522,87.47,30.9331]
[1646590750197,1.55405373,87.523,87.47,30.9331]
[1646590750399,1.55405373,87.519,87.47,30.9331]
[1646590750797,6.25172911,87.536,87.47,30.9331]
[1646590750798,1.55405373,87.512,87.47,30.9331]
[1646590751001,1.55405373,87.511,87.47,30.9331]
[1646590751401,1.55405373,87.509,87.47,30.9331]
[1646590751700,1.55405373,87.51,87.47,30.9331]
[1646590753100,1.55405373,87.509,87.47,30.9331]
[1646590753300,1.55405373,87.508,87.47,30.9331]
[1646590753798,1.55405373,87.507,87.47,30.9331]
[1646590754901,1.55405373,87.508,87.47,30.9331]
[1646590755203,1.55405373,87.509,87.47,30.9331]
[1646590756102,1.55405373,87.508,87.47,30.9331]
[1646590756509,1.55405373,87.507,87.47,30.9331]
[1646590756901,1.55405373,87.506,87.47,30.9331]
[1646590757102,1.55405373,87.505,87.47,30.9331]
[1646590757502,1.55405373,87.506,87.47,30.9331]
[1646590758603,1.55405373,87.505,87.47,30.9331]
[1646590758804,1.55405373,87.507,87.47,30.9331]
[1646590759204,24.5322,87.526,87.47,30.9331]
[1646590759205,1.55405373,87.505,87.47,30.9331]
[1646590759907,1.55405373,87.504,87.47,30.9331]
[1646590761110,1.55405373,87.505,87.47,30.9331]
[1646590761311,1.55405373,87.506,87.47,30.9331]
[1646590761528,1.55405373,87.507,87.47,30.9331]
[1646590761732,1.55405373,87.509,87.47,30.9331]
[1646590761933,1.55405373,87.51,87.47,30.9331]
[1646590762532,1.55405373,87.509,87.47,30.9331]
[1646590764436,1.55405373,87.508,87.47,30.9331]
[1646590765737,1.55405373,87.508,87.471,5.715]
[1646590765936,1.55405373,87.508,87.48,17.1482]
[1646590766237,1.55405373,87.508,87.482,62.69532177]
[1646590766637,1.55405373,87.508,87.481,5.714]
[1646590766838,6.25177657,87.531,87.454,40.5896057]